[Event "Late-Titled-Tuesday-Blitz-February-20-2024"]
[Site "Chess.com"]
[Date "2024.02.20"]
[Round "4"]
[White "ElDivis"]
[Black "Zavgorodniy_Sergiy"]
[Result "0-1"]
[WhiteElo "2417"]
[BlackElo "2628"]
[TimeControl "180+1"]
[EndTime "14:36:32 PST"]
[Termination "Zavgorodniy_Sergiy won by resignation"]

1. e4 {[%clk 0:02:57.6]} 1... c6 {[%clk 0:02:59.8]} 2. Nf3 {[%clk 0:02:51.9]}
2... d5 {[%clk 0:03:00.7]} 3. e5 {[%clk 0:02:51.3]} 3... Bg4 {[%clk 0:03:00.2]}
4. Be2 {[%clk 0:02:50]} 4... e6 {[%clk 0:03:00.6]} 5. O-O {[%clk 0:02:49.8]}
5... Nd7 {[%clk 0:03:00.9]} 6. c4 {[%clk 0:02:47]} 6... Bxf3 {[%clk 0:02:59.2]}
7. Bxf3 {[%clk 0:02:43.4]} 7... Nxe5 {[%clk 0:02:59.5]} 8. cxd5 {[%clk
0:02:43.4]} 8... Nxf3+ {[%clk 0:02:59.7]} 9. Qxf3 {[%clk 0:02:43]} 9... Qxd5
{[%clk 0:02:59.9]} 10. Qe2 {[%clk 0:02:25.9]} 10... Nf6 {[%clk 0:02:59.3]} 11.
Nc3 {[%clk 0:02:25.9]} 11... Qd7 {[%clk 0:02:59.6]} 12. d4 {[%clk 0:02:08.1]}
12... Be7 {[%clk 0:02:59.5]} 13. Be3 {[%clk 0:02:05.4]} 13... O-O {[%clk
0:02:59.5]} 14. Rad1 {[%clk 0:02:05.9]} 14... Nd5 {[%clk 0:02:59.6]} 15. Ne4
{[%clk 0:02:04.3]} 15... Rfd8 {[%clk 0:02:56.1]} 16. Nc5 {[%clk 0:02:04.2]}
16... Qc7 {[%clk 0:02:53.1]} 17. Bc1 {[%clk 0:01:58.1]} 17... b6 {[%clk
0:02:49.4]} 18. Nd3 {[%clk 0:01:57.7]} 18... Bf6 {[%clk 0:02:46.9]} 19. Ne5
{[%clk 0:01:57.9]} 19... c5 {[%clk 0:02:42.8]} 20. Nf3 {[%clk 0:01:54.5]} 20...
Rac8 {[%clk 0:02:37.3]} 21. a3 {[%clk 0:01:41.5]} 21... Qb7 {[%clk 0:02:28.8]}
22. dxc5 {[%clk 0:01:38.4]} 22... Rxc5 {[%clk 0:02:29.7]} 23. Bg5 {[%clk
0:01:37.6]} 23... Rdc8 {[%clk 0:02:24.8]} 24. Bxf6 {[%clk 0:01:37.1]} 24... Nxf6
{[%clk 0:02:25.7]} 25. Qd2 {[%clk 0:01:30.8]} 25... h6 {[%clk 0:02:24.8]} 26.
Rc1 {[%clk 0:01:23.4]} 26... Rxc1 {[%clk 0:02:19.5]} 27. Rxc1 {[%clk 0:01:24.3]}
27... Rxc1+ {[%clk 0:02:19.1]} 28. Qxc1 {[%clk 0:01:19.5]} 28... Nd5 {[%clk
0:02:18]} 29. h3 {[%clk 0:01:15]} 29... Qc7 {[%clk 0:02:17.5]} 30. Qd1 {[%clk
0:01:09.1]} 30... Qc4 {[%clk 0:02:10]} 31. Ne5 {[%clk 0:01:03.5]} 31... Qe4
{[%clk 0:02:09.6]} 32. Nc6 {[%clk 0:00:47.3]} 32... Nf4 {[%clk 0:02:07]} 33.
Ne7+ {[%clk 0:00:42.5]} 33... Kh7 {[%clk 0:02:03.8]} 34. f3 {[%clk 0:00:41.1]}
34... Qe3+ {[%clk 0:01:56]} 35. Kf1 {[%clk 0:00:32.2]} 35... Nd3 {[%clk
0:01:51.7]} 0-1

[Event "Late-Titled-Tuesday-Blitz-February-20-2024"]
[Site "Chess.com"]
[Date "2024.02.20"]
[Round "4"]
[White "DrVelja"]
[Black "rezamahdavi2008"]
[Result "0-1"]
[WhiteElo "2970"]
[BlackElo "2846"]
[TimeControl "180+1"]
[EndTime "14:36:36 PST"]
[Termination "rezamahdavi2008 won by resignation"]

1. e4 {[%clk 0:03:00.9]} 1... c5 {[%clk 0:02:58.5]} 2. Nf3 {[%clk 0:03:01.3]}
2... d6 {[%clk 0:02:59.2]} 3. Nc3 {[%clk 0:02:59.1]} 3... a6 {[%clk 0:02:58.1]}
4. h3 {[%clk 0:02:59.1]} 4... Nf6 {[%clk 0:02:56]} 5. g4 {[%clk 0:02:58.9]} 5...
Nc6 {[%clk 0:02:45.3]} 6. g5 {[%clk 0:02:58]} 6... Nd7 {[%clk 0:02:43.1]} 7. d4
{[%clk 0:02:58.4]} 7... cxd4 {[%clk 0:02:43.3]} 8. Nxd4 {[%clk 0:02:59.3]} 8...
g6 {[%clk 0:02:38]} 9. Be3 {[%clk 0:02:58.3]} 9... Bg7 {[%clk 0:02:38.2]} 10. h4
{[%clk 0:02:57]} 10... Nde5 {[%clk 0:02:35.9]} 11. Be2 {[%clk 0:02:57.3]} 11...
O-O {[%clk 0:02:30.7]} 12. f4 {[%clk 0:02:49.3]} 12... Nxd4 {[%clk 0:02:24.5]}
13. Bxd4 {[%clk 0:02:49.1]} 13... Nc6 {[%clk 0:02:25.4]} 14. Bxg7 {[%clk
0:02:49.5]} 14... Kxg7 {[%clk 0:02:26.3]} 15. Qd2 {[%clk 0:02:48]} 15... Qb6
{[%clk 0:02:24.7]} 16. O-O-O {[%clk 0:02:48.2]} 16... Be6 {[%clk 0:02:25.3]} 17.
h5 {[%clk 0:02:45.8]} 17... Rac8 {[%clk 0:02:22.8]} 18. hxg6 {[%clk 0:02:39.1]}
18... fxg6 {[%clk 0:02:23]} 19. f5 {[%clk 0:02:38.4]} 19... Bg8 {[%clk
0:02:18.1]} 20. fxg6 {[%clk 0:01:52.4]} 20... hxg6 {[%clk 0:02:19]} 21. Qd3
{[%clk 0:01:26.6]} 21... Be6 {[%clk 0:02:14]} 22. Rdf1 {[%clk 0:00:48.3]} 22...
Ne5 {[%clk 0:02:10.1]} 23. Qg3 {[%clk 0:00:48.2]} 23... Rxf1+ {[%clk 0:02:10.7]}
24. Rxf1 {[%clk 0:00:49.1]} 24... Rf8 {[%clk 0:02:08.9]} 25. Rxf8 {[%clk
0:00:43]} 25... Kxf8 {[%clk 0:02:09.8]} 26. b3 {[%clk 0:00:32.5]} 26... Qd4
{[%clk 0:02:09.1]} 27. a4 {[%clk 0:00:23.3]} 27... Kg7 {[%clk 0:02:07.3]} 28.
Kb2 {[%clk 0:00:23.3]} 28... Nd7 {[%clk 0:02:05]} 29. Qd3 {[%clk 0:00:21]} 29...
Qe5 {[%clk 0:02:05.3]} 30. Qe3 {[%clk 0:00:21]} 30... Nc5 {[%clk 0:02:05.1]} 31.
Kc1 {[%clk 0:00:21.7]} 31... Bf7 {[%clk 0:02:02.7]} 32. Bg4 {[%clk 0:00:19.6]}
32... Be6 {[%clk 0:02:01.6]} 33. Be2 {[%clk 0:00:19.8]} 33... Bd7 {[%clk
0:02:02.2]} 34. Bc4 {[%clk 0:00:19.3]} 34... Bc6 {[%clk 0:02:02.8]} 35. Bd5
{[%clk 0:00:18.1]} 35... Bxd5 {[%clk 0:02:00.6]} 36. Nxd5 {[%clk 0:00:19]} 36...
Nxe4 {[%clk 0:01:59]} 37. c3 {[%clk 0:00:19.5]} 37... Qxd5 {[%clk 0:01:59]} 0-1

[Event "Late-Titled-Tuesday-Blitz-February-20-2024"]
[Site "Chess.com"]
[Date "2024.02.20"]
[Round "4"]
[White "manitodeplomo"]
[Black "Slovineanu"]
[Result "1/2-1/2"]
[WhiteElo "2647"]
[BlackElo "2438"]
[TimeControl "180+1"]
[EndTime "14:36:36 PST"]
[Termination "Game drawn by repetition"]

1. d4 {[%clk 0:03:00.9]} 1... Nf6 {[%clk 0:02:58.6]} 2. c4 {[%clk 0:03:00.8]}
2... e6 {[%clk 0:02:58.8]} 3. Nf3 {[%clk 0:03:00.1]} 3... d5 {[%clk 0:02:59.2]}
4. Nc3 {[%clk 0:02:58.4]} 4... c5 {[%clk 0:02:59]} 5. Bg5 {[%clk 0:02:57.8]}
5... cxd4 {[%clk 0:02:48.3]} 6. Qxd4 {[%clk 0:02:58.7]} 6... Nc6 {[%clk
0:02:46.9]} 7. Bxf6 {[%clk 0:02:59.2]} 7... Nxd4 {[%clk 0:02:32]} 8. Bxd8 {[%clk
0:02:57.6]} 8... Nxf3+ {[%clk 0:02:32.1]} 9. gxf3 {[%clk 0:02:45.8]} 9... Kxd8
{[%clk 0:02:32.3]} 10. cxd5 {[%clk 0:02:45.6]} 10... Bb4 {[%clk 0:02:32.7]} 11.
O-O-O {[%clk 0:02:42.5]} 11... Ke7 {[%clk 0:02:01.8]} 12. e4 {[%clk 0:02:35.2]}
12... Rd8 {[%clk 0:01:51.6]} 13. Bc4 {[%clk 0:02:18.4]} 13... Bxc3 {[%clk
0:01:33.2]} 14. bxc3 {[%clk 0:02:17.1]} 14... exd5 {[%clk 0:01:26.4]} 15. Bxd5
{[%clk 0:02:15.2]} 15... Be6 {[%clk 0:01:10.9]} 16. c4 {[%clk 0:02:06.3]} 16...
Rac8 {[%clk 0:01:10]} 17. Kd2 {[%clk 0:01:59.7]} 17... b5 {[%clk 0:01:01.1]} 18.
Ke3 {[%clk 0:01:40.2]} 18... bxc4 {[%clk 0:01:00.2]} 19. Bxe6 {[%clk 0:01:38.2]}
19... Kxe6 {[%clk 0:00:57.8]} 20. Rxd8 {[%clk 0:01:37.6]} 20... Rxd8 {[%clk
0:00:57.9]} 21. Rc1 {[%clk 0:01:37]} 21... Rd3+ {[%clk 0:00:58.3]} 22. Ke2
{[%clk 0:01:33.4]} 22... Ra3 {[%clk 0:00:57.1]} 23. Rxc4 {[%clk 0:01:32]} 23...
Rxa2+ {[%clk 0:00:57.4]} 24. Ke3 {[%clk 0:01:32.3]} 24... g5 {[%clk 0:00:51.8]}
25. Rc6+ {[%clk 0:01:25.8]} 25... Ke5 {[%clk 0:00:46.2]} 26. Rc5+ {[%clk
0:01:19.6]} 26... Kf6 {[%clk 0:00:44.6]} 27. Rc6+ {[%clk 0:01:18.4]} 27... Ke5
{[%clk 0:00:44.1]} 28. Rc5+ {[%clk 0:01:16.3]} 28... Kf6 {[%clk 0:00:43.7]} 29.
Rc6+ {[%clk 0:01:15.2]} 29... Ke5 {[%clk 0:00:43.8]} 1/2-1/2

[Event "Late-Titled-Tuesday-Blitz-February-20-2024"]
[Site "Chess.com"]
[Date "2024.02.20"]
[Round "4"]
[White "Pelusiansky"]
[Black "Shankland"]
[Result "0-1"]
[WhiteElo "2562"]
[BlackElo "2940"]
[TimeControl "180+1"]
[EndTime "14:36:49 PST"]
[Termination "Shankland won by resignation"]

1. d4 {[%clk 0:03:00.9]} 1... d5 {[%clk 0:02:58]} 2. c4 {[%clk 0:03:01.1]} 2...
c6 {[%clk 0:02:58.3]} 3. Nc3 {[%clk 0:03:01.1]} 3... Nf6 {[%clk 0:02:57.9]} 4.
Nf3 {[%clk 0:03:01.6]} 4... e6 {[%clk 0:02:58.4]} 5. Bg5 {[%clk 0:02:59.7]} 5...
Nbd7 {[%clk 0:02:57.4]} 6. e3 {[%clk 0:02:59.5]} 6... Qa5 {[%clk 0:02:57]} 7.
Qc2 {[%clk 0:02:42.4]} 7... Ne4 {[%clk 0:02:54.2]} 8. h4 {[%clk 0:02:19]} 8...
Bb4 {[%clk 0:02:52.8]} 9. Rc1 {[%clk 0:02:16.3]} 9... Qxa2 {[%clk 0:02:51.7]}
10. Bd3 {[%clk 0:02:06.3]} 10... Nxc3 {[%clk 0:02:49.6]} 11. bxc3 {[%clk
0:02:05.9]} 11... Qxc2 {[%clk 0:02:50.2]} 12. Rxc2 {[%clk 0:02:06.8]} 12... Be7
{[%clk 0:02:50.4]} 13. Bf4 {[%clk 0:02:01.4]} 13... b6 {[%clk 0:02:47.2]} 14.
cxd5 {[%clk 0:01:58.2]} 14... exd5 {[%clk 0:02:42.7]} 15. e4 {[%clk 0:01:46.9]}
15... O-O {[%clk 0:02:39]} 16. O-O {[%clk 0:01:40.7]} 16... Nf6 {[%clk
0:02:34.8]} 17. e5 {[%clk 0:01:34.6]} 17... Ne4 {[%clk 0:02:33.7]} 18. c4 {[%clk
0:01:30.4]} 18... Be6 {[%clk 0:02:29.8]} 19. Re1 {[%clk 0:01:17.1]} 19... a5
{[%clk 0:02:27.6]} 20. cxd5 {[%clk 0:01:13.4]} 20... cxd5 {[%clk 0:02:27.8]} 21.
Rb2 {[%clk 0:00:57.4]} 21... Bb4 {[%clk 0:02:21.6]} 22. Reb1 {[%clk 0:00:41]}
22... Rfc8 {[%clk 0:02:20.4]} 23. Nd2 {[%clk 0:00:13.4]} 23... Nc3 {[%clk
0:02:17.4]} 24. Ra1 {[%clk 0:00:13.2]} 24... b5 {[%clk 0:02:15.9]} 25. Nb3
{[%clk 0:00:12.3]} 25... a4 {[%clk 0:02:03.2]} 26. Nc5 {[%clk 0:00:12.4]} 26...
Bxc5 {[%clk 0:02:03.3]} 27. dxc5 {[%clk 0:00:12.8]} 27... Rxc5 {[%clk
0:02:03.7]} 28. Be3 {[%clk 0:00:13.4]} 28... Rcc8 {[%clk 0:02:03.5]} 29. Bd4
{[%clk 0:00:13.1]} 29... a3 {[%clk 0:02:01]} 30. Rb3 {[%clk 0:00:13.4]} 30... a2
{[%clk 0:01:53.2]} 31. Bxc3 {[%clk 0:00:12.5]} 31... d4 {[%clk 0:01:53.3]} 32.
Rxb5 {[%clk 0:00:10]} 32... Rxc3 {[%clk 0:01:51.9]} 33. Bc2 {[%clk 0:00:10.6]}
33... Rxc2 {[%clk 0:01:51.8]} 0-1

[Event "Late-Titled-Tuesday-Blitz-February-20-2024"]
[Site "Chess.com"]
[Date "2024.02.20"]
[Round "4"]
[White "reevecanada"]
[Black "kylelancman"]
[Result "1-0"]
[WhiteElo "2625"]
[BlackElo "2483"]
[TimeControl "180+1"]
[EndTime "14:36:50 PST"]
[Termination "reevecanada won by resignation"]

1. e4 {[%clk 0:03:00.9]} 1... c5 {[%clk 0:03:00]} 2. Nf3 {[%clk 0:02:58.2]} 2...
g6 {[%clk 0:03:00.1]} 3. d4 {[%clk 0:02:57.6]} 3... cxd4 {[%clk 0:03:01]} 4.
Qxd4 {[%clk 0:02:57.1]} 4... Nf6 {[%clk 0:02:59.3]} 5. e5 {[%clk 0:02:57.1]}
5... Nc6 {[%clk 0:02:59.5]} 6. Qa4 {[%clk 0:02:57.6]} 6... Nd5 {[%clk
0:02:58.9]} 7. c4 {[%clk 0:02:54.9]} 7... Nc7 {[%clk 0:02:56.7]} 8. Nc3 {[%clk
0:02:54.2]} 8... Bg7 {[%clk 0:02:55.8]} 9. Bf4 {[%clk 0:02:48.1]} 9... Ne6
{[%clk 0:02:55.4]} 10. Bg3 {[%clk 0:02:42.4]} 10... O-O {[%clk 0:02:45.1]} 11.
O-O-O {[%clk 0:02:40.8]} 11... Qa5 {[%clk 0:02:44.3]} 12. Qxa5 {[%clk
0:02:34.9]} 12... Nxa5 {[%clk 0:02:45.2]} 13. Nd5 {[%clk 0:02:35]} 13... Nc6
{[%clk 0:02:45]} 14. b4 {[%clk 0:02:34.1]} 14... Re8 {[%clk 0:02:22]} 15. b5
{[%clk 0:02:16.5]} 15... Na5 {[%clk 0:02:17.5]} 16. h4 {[%clk 0:02:09.8]} 16...
b6 {[%clk 0:02:12.6]} 17. h5 {[%clk 0:02:08.6]} 17... Bb7 {[%clk 0:02:12.3]} 18.
Ne3 {[%clk 0:02:04.4]} 18... Rac8 {[%clk 0:02:06.9]} 19. Rxd7 {[%clk 0:02:00.7]}
19... Nc5 {[%clk 0:01:41.2]} 20. Rd1 {[%clk 0:01:56.3]} 20... Ne4 {[%clk
0:01:35.2]} 21. hxg6 {[%clk 0:01:44.2]} 21... hxg6 {[%clk 0:01:32.5]} 22. Bd3
{[%clk 0:01:37.8]} 22... Nxg3 {[%clk 0:01:29.7]} 23. fxg3 {[%clk 0:01:38.7]}
23... Bxf3 {[%clk 0:01:25.8]} 24. gxf3 {[%clk 0:01:39.2]} 24... Bxe5 {[%clk
0:01:26.1]} 25. Kb1 {[%clk 0:01:39.5]} 25... Bd4 {[%clk 0:01:12.3]} 26. Nd5
{[%clk 0:01:34.7]} 26... Nxc4 {[%clk 0:01:07.8]} 27. Bxc4 {[%clk 0:01:32.8]}
27... Rxc4 {[%clk 0:01:08]} 28. Rh4 {[%clk 0:01:33.3]} 28... Rc5 {[%clk
0:00:18.6]} 29. Rhxd4 {[%clk 0:01:28.1]} 29... Rxb5+ {[%clk 0:00:18.7]} 30. Ka1
{[%clk 0:01:27.4]} 30... Kg7 {[%clk 0:00:19]} 31. Nc7 {[%clk 0:01:26.8]} 1-0

[Event "Late-Titled-Tuesday-Blitz-February-20-2024"]
[Site "Chess.com"]
[Date "2024.02.20"]
[Round "4"]
[White "cukricek"]
[Black "Iuckyducky"]
[Result "0-1"]
[WhiteElo "2453"]
[BlackElo "2316"]
[TimeControl "180+1"]
[EndTime "14:36:50 PST"]
[Termination "Iuckyducky won by resignation"]

1. g3 {[%clk 0:03:00.9]} 1... d5 {[%clk 0:02:56.5]} 2. Nf3 {[%clk 0:02:59.9]}
2... Nf6 {[%clk 0:02:56.9]} 3. Bg2 {[%clk 0:03:00.2]} 3... e6 {[%clk 0:02:57.4]}
4. O-O {[%clk 0:03:00.4]} 4... Nc6 {[%clk 0:02:48.2]} 5. d4 {[%clk 0:03:00.3]}
5... Be7 {[%clk 0:02:43.6]} 6. c4 {[%clk 0:02:55.2]} 6... O-O {[%clk 0:02:43.7]}
7. Nc3 {[%clk 0:02:52.8]} 7... dxc4 {[%clk 0:02:42.7]} 8. e3 {[%clk 0:02:51]}
8... Rb8 {[%clk 0:02:36.9]} 9. a4 {[%clk 0:02:50.1]} 9... Na5 {[%clk 0:02:32.9]}
10. Nd2 {[%clk 0:02:48.4]} 10... c6 {[%clk 0:02:32.7]} 11. Nde4 {[%clk
0:02:08.6]} 11... Nd5 {[%clk 0:02:10]} 12. Bd2 {[%clk 0:02:04.7]} 12... Nb3
{[%clk 0:02:04.6]} 13. Rb1 {[%clk 0:01:59.1]} 13... Nxd2 {[%clk 0:02:04.4]} 14.
Nxd2 {[%clk 0:01:53.9]} 14... b5 {[%clk 0:02:04.2]} 15. Qc2 {[%clk 0:01:48.3]}
15... Nb4 {[%clk 0:01:41.6]} 16. Qe4 {[%clk 0:01:48]} 16... Bb7 {[%clk
0:01:40.1]} 17. Qg4 {[%clk 0:01:17.2]} 17... a6 {[%clk 0:01:36]} 18. b3 {[%clk
0:01:08.8]} 18... cxb3 {[%clk 0:01:29.9]} 19. Nxb3 {[%clk 0:01:09.7]} 19... Nd5
{[%clk 0:01:00.8]} 20. Ne4 {[%clk 0:01:01.3]} 20... f5 {[%clk 0:01:00]} 21. Qh3
{[%clk 0:00:49.8]} 21... fxe4 {[%clk 0:00:57.5]} 22. Qxe6+ {[%clk 0:00:50]}
22... Kh8 {[%clk 0:00:55.9]} 23. Bxe4 {[%clk 0:00:50.5]} 23... Nc3 {[%clk
0:00:54.2]} 24. Rbc1 {[%clk 0:00:50.9]} 24... Nxe4 {[%clk 0:00:53.9]} 25. Qxe4
{[%clk 0:00:51.5]} 25... c5 {[%clk 0:00:52.3]} 26. Qg4 {[%clk 0:00:47.5]} 26...
Qd5 {[%clk 0:00:51]} 0-1

[Event "Late-Titled-Tuesday-Blitz-February-20-2024"]
[Site "Chess.com"]
[Date "2024.02.20"]
[Round "4"]
[White "LiemLe"]
[Black "MarcoRiehle"]
[Result "1-0"]
[WhiteElo "3033"]
[BlackElo "2857"]
[TimeControl "180+1"]
[EndTime "14:36:56 PST"]
[Termination "LiemLe won by resignation"]

1. Nf3 {[%clk 0:03:00.9]} 1... c5 {[%clk 0:02:58.7]} 2. c4 {[%clk 0:03:00.5]}
2... Nf6 {[%clk 0:02:58.2]} 3. Nc3 {[%clk 0:03:00.9]} 3... d5 {[%clk 0:02:58.7]}
4. cxd5 {[%clk 0:03:01.8]} 4... Nxd5 {[%clk 0:02:59.1]} 5. e4 {[%clk 0:03:01]}
5... Nxc3 {[%clk 0:02:59.3]} 6. dxc3 {[%clk 0:02:59.8]} 6... Qxd1+ {[%clk
0:02:59.9]} 7. Kxd1 {[%clk 0:03:00.7]} 7... Nc6 {[%clk 0:02:59.8]} 8. Be3 {[%clk
0:02:58.5]} 8... b6 {[%clk 0:02:58.7]} 9. Kc2 {[%clk 0:02:56.1]} 9... Bd7 {[%clk
0:02:57.9]} 10. Ba6 {[%clk 0:02:52.5]} 10... e5 {[%clk 0:02:54.8]} 11. Rhd1
{[%clk 0:02:50.7]} 11... f6 {[%clk 0:02:45.6]} 12. Nd2 {[%clk 0:02:36.7]} 12...
Bd6 {[%clk 0:02:21]} 13. Nc4 {[%clk 0:02:29]} 13... Bc7 {[%clk 0:02:20.2]} 14.
Rd2 {[%clk 0:02:26.9]} 14... Rd8 {[%clk 0:02:18]} 15. Rad1 {[%clk 0:02:21.6]}
15... Be6 {[%clk 0:02:11.9]} 16. Bb5 {[%clk 0:02:05.8]} 16... Rxd2+ {[%clk
0:02:11.1]} 17. Rxd2 {[%clk 0:02:01.8]} 17... Bd7 {[%clk 0:02:09.9]} 18. a4
{[%clk 0:01:45.7]} 18... Ke7 {[%clk 0:01:57.9]} 19. f3 {[%clk 0:01:43.8]} 19...
Rd8 {[%clk 0:01:39.7]} 20. Bf2 {[%clk 0:01:36.3]} 20... Be8 {[%clk 0:01:28]} 21.
Re2 {[%clk 0:01:36.5]} 21... Bf7 {[%clk 0:01:03.2]} 22. Nxb6 {[%clk 0:01:21.6]}
22... axb6 {[%clk 0:01:04.1]} 23. Bxc6 {[%clk 0:01:21.6]} 23... Bc4 {[%clk
0:01:03.7]} 24. Rd2 {[%clk 0:01:19.8]} 24... Bb3+ {[%clk 0:01:01.3]} 25. Kc1
{[%clk 0:01:19.8]} 25... Rxd2 {[%clk 0:01:01]} 26. Kxd2 {[%clk 0:01:20.7]} 26...
Bc4 {[%clk 0:00:59]} 27. Bb5 {[%clk 0:01:18.2]} 27... Bxb5 {[%clk 0:00:58]} 28.
axb5 {[%clk 0:01:19.1]} 28... Kd6 {[%clk 0:00:57.4]} 29. Kd3 {[%clk 0:01:18.9]}
29... Kd7 {[%clk 0:00:57.7]} 30. Kc4 {[%clk 0:01:18.9]} 30... Bd6 {[%clk
0:00:58.2]} 31. b4 {[%clk 0:01:14.2]} 31... cxb4 {[%clk 0:00:57]} 32. Bxb6
{[%clk 0:01:14.6]} 32... bxc3 {[%clk 0:00:57.3]} 33. Kxc3 {[%clk 0:01:15.5]}
33... Be7 {[%clk 0:00:55.1]} 34. Kc4 {[%clk 0:01:15.5]} 34... Ke6 {[%clk
0:00:54]} 35. Bc5 {[%clk 0:01:09.4]} 35... Bd8 {[%clk 0:00:53.6]} 36. b6 {[%clk
0:01:09.9]} 36... f5 {[%clk 0:00:52.1]} 37. b7 {[%clk 0:01:08.1]} 37... Bc7
{[%clk 0:00:51.9]} 38. Ba7 {[%clk 0:01:08.2]} 38... fxe4 {[%clk 0:00:51.5]} 39.
fxe4 {[%clk 0:01:09.1]} 1-0

[Event "Late-Titled-Tuesday-Blitz-February-20-2024"]
[Site "Chess.com"]
[Date "2024.02.20"]
[Round "4"]
[White "toninhojit"]
[Black "ritanovikova"]
[Result "0-1"]
[WhiteElo "2454"]
[BlackElo "2209"]
[TimeControl "180+1"]
[EndTime "14:36:57 PST"]
[Termination "ritanovikova won by resignation"]

1. e4 {[%clk 0:02:59.4]} 1... d5 {[%clk 0:02:59.3]} 2. d4 {[%clk 0:02:57]} 2...
dxe4 {[%clk 0:02:59.2]} 3. f3 {[%clk 0:02:57.2]} 3... exf3 {[%clk 0:02:58.8]} 4.
Nxf3 {[%clk 0:02:57]} 4... Nf6 {[%clk 0:02:58.3]} 5. Bc4 {[%clk 0:02:57.1]} 5...
Bf5 {[%clk 0:02:56.5]} 6. Ne5 {[%clk 0:02:54.9]} 6... e6 {[%clk 0:02:55.5]} 7.
O-O {[%clk 0:02:55.5]} 7... Nbd7 {[%clk 0:02:52.8]} 8. Nxf7 {[%clk 0:02:54.8]}
8... Kxf7 {[%clk 0:02:46.5]} 9. Rxf5 {[%clk 0:02:54.8]} 9... Nb6 {[%clk
0:02:45.9]} 10. Bb3 {[%clk 0:02:53.6]} 10... a5 {[%clk 0:02:40.2]} 11. Rf1
{[%clk 0:02:40.5]} 11... a4 {[%clk 0:02:39.2]} 12. Qh5+ {[%clk 0:02:36.2]} 12...
g6 {[%clk 0:02:33.9]} 13. Bxe6+ {[%clk 0:02:31.5]} 13... Kxe6 {[%clk 0:02:30.1]}
14. Qe5+ {[%clk 0:02:26.2]} 14... Kf7 {[%clk 0:02:23.5]} 15. Bg5 {[%clk
0:02:26.1]} 15... Bg7 {[%clk 0:02:15.8]} 16. Nc3 {[%clk 0:02:25.1]} 16... Re8
{[%clk 0:02:09.8]} 17. Qf4 {[%clk 0:02:22.9]} 17... Qd6 {[%clk 0:01:55.5]} 18.
Qh4 {[%clk 0:02:17.7]} 18... h6 {[%clk 0:01:33.6]} 19. Bxf6 {[%clk 0:02:07.4]}
19... Bxf6 {[%clk 0:01:30.1]} 20. Qxh6 {[%clk 0:02:08.1]} 20... Qxd4+ {[%clk
0:01:23.1]} 21. Kh1 {[%clk 0:02:07.5]} 21... Rh8 {[%clk 0:01:23.2]} 22. Qc1
{[%clk 0:01:58.6]} 22... Qe5 {[%clk 0:00:39.2]} 23. Rf4 {[%clk 0:01:55.5]} 23...
g5 {[%clk 0:00:36.4]} 24. Rxf6+ {[%clk 0:01:47.6]} 24... Kxf6 {[%clk 0:00:36.5]}
25. g3 {[%clk 0:01:44.3]} 25... Qxg3 {[%clk 0:00:30.3]} 26. Qf1+ {[%clk
0:01:44.3]} 26... Qf4 {[%clk 0:00:28.8]} 27. Qg2 {[%clk 0:01:43.8]} 27... Kg6
{[%clk 0:00:20.3]} 28. Rf1 {[%clk 0:01:41.4]} 28... Rxh2+ {[%clk 0:00:19.7]} 29.
Kg1 {[%clk 0:01:35]} 29... Rxg2+ {[%clk 0:00:19.3]} 0-1

[Event "Late-Titled-Tuesday-Blitz-February-20-2024"]
[Site "Chess.com"]
[Date "2024.02.20"]
[Round "4"]
[White "crescentmoon2411"]
[Black "northridgehawk"]
[Result "1-0"]
[WhiteElo "2980"]
[BlackElo "2269"]
[TimeControl "180+1"]
[EndTime "14:37:04 PST"]
[Termination "crescentmoon2411 won by resignation"]

1. d4 {[%clk 0:02:53.5]} 1... f5 {[%clk 0:02:59.5]} 2. c4 {[%clk 0:02:52]} 2...
Nf6 {[%clk 0:02:58.8]} 3. Nc3 {[%clk 0:02:52.6]} 3... e6 {[%clk 0:02:58.9]} 4.
Bg5 {[%clk 0:02:50.5]} 4... Bb4 {[%clk 0:02:59.1]} 5. e3 {[%clk 0:02:49.2]} 5...
Bxc3+ {[%clk 0:02:58.3]} 6. bxc3 {[%clk 0:02:49.8]} 6... O-O {[%clk 0:02:58.9]}
7. Bd3 {[%clk 0:02:49.7]} 7... b6 {[%clk 0:02:59.1]} 8. Qf3 {[%clk 0:02:49]}
8... c6 {[%clk 0:02:58.2]} 9. Ne2 {[%clk 0:02:46.2]} 9... d5 {[%clk 0:02:58]}
10. Nf4 {[%clk 0:02:44.8]} 10... Qe7 {[%clk 0:02:56.5]} 11. h4 {[%clk
0:02:43.5]} 11... Nbd7 {[%clk 0:02:56.5]} 12. h5 {[%clk 0:02:32.7]} 12... Ba6
{[%clk 0:02:49.1]} 13. g4 {[%clk 0:01:57.9]} 13... e5 {[%clk 0:02:37.7]} 14. Ng6
{[%clk 0:01:53.3]} 14... Qa3 {[%clk 0:02:32.1]} 15. Qxf5 {[%clk 0:01:48.1]}
15... Qxc3+ {[%clk 0:02:21.4]} 16. Kf1 {[%clk 0:01:46.8]} 16... Bxc4 {[%clk
0:02:16.4]} 17. Bxc4 {[%clk 0:01:42]} 17... Qxc4+ {[%clk 0:02:15.8]} 18. Kg2
{[%clk 0:01:42.1]} 18... Qe2 {[%clk 0:02:01]} 19. Nxf8 {[%clk 0:01:29.7]} 19...
Rxf8 {[%clk 0:02:00.2]} 20. Rae1 {[%clk 0:01:16.5]} 20... Qb2 {[%clk 0:01:58]}
21. Qe6+ {[%clk 0:01:06.4]} 21... Rf7 {[%clk 0:01:48]} 22. Bxf6 {[%clk
0:00:47.5]} 22... Nxf6 {[%clk 0:01:47.8]} 23. Rhf1 {[%clk 0:00:43.6]} 23... Ne4
{[%clk 0:01:41]} 24. dxe5 {[%clk 0:00:36.2]} 24... Nd2 {[%clk 0:01:31.1]} 25.
Re2 {[%clk 0:00:34.3]} 25... Qc2 {[%clk 0:01:30.5]} 26. Rxd2 {[%clk 0:00:33.4]}
26... Qxd2 {[%clk 0:01:31.4]} 27. g5 {[%clk 0:00:30.5]} 27... Kf8 {[%clk
0:01:24.8]} 28. g6 {[%clk 0:00:29.6]} 28... hxg6 {[%clk 0:01:22.8]} 29. hxg6
{[%clk 0:00:30.5]} 29... Re7 {[%clk 0:01:22.7]} 30. Qf5+ {[%clk 0:00:28.8]}
30... Kg8 {[%clk 0:01:15.7]} 31. Qc8+ {[%clk 0:00:27.6]} 1-0